fUSD/lending_fUSD_20250205
["ID","MTS","AMOUNT","RATE_DAILY","PERIOD"]
[351772126,1738782658611,-500.0,9.757e-05,2]
[351772127,1738782658620,-150.0,9.811e-05,2]
[351772128,1738782658630,-739.12,9.812e-05,2]
[351772129,1738782658640,-150.0,9.856e-05,2]
[351772130,1738782658653,-150.0,9.875e-05,2]
[351772131,1738782658663,-150.0,9.887e-05,2]
[351772132,1738782658672,-500.0,9.889e-05,2]
[351772133,1738782658683,-500.0,9.889e-05,2]
[351772134,1738782658693,-500.0,9.889e-05,2]
[351772135,1738782658703,-500.0,9.889e-05,2]
[351772136,1738782658712,-500.0,9.889e-05,2]
[351772137,1738782658722,-500.0,9.889e-05,2]
[351772138,1738782658732,-364.47,9.889e-05,2]
[351772139,1738782658741,-500.0,9.889e-05,2]
[351772140,1738782658751,-500.0,9.889e-05,2]
[351772141,1738782658761,-523.22,9.889e-05,2]
[351772142,1738782658771,-555.31,9.889e-05,2]
[351772143,1738782658784,-480.52,9.889e-05,2]
[351772144,1738782658794,-500.0,9.889e-05,2]
[351772145,1738782658804,-572.64,9.889e-05,2]
[351772146,1738782658814,-317.06,9.889e-05,2]
[351772147,1738782658824,-500.0,9.889e-05,2]
[351772148,1738782658834,-507.01,9.889e-05,2]
[351772149,1738782658844,-500.0,9.889e-05,2]
[351772150,1738782658853,-518.79,9.889e-05,2]
[351772151,1738782658863,-500.0,9.889e-05,2]
[351772152,1738782658873,-500.0,9.889e-05,2]
[351772153,1738782658883,-500.0,9.889e-05,2]
[351772154,1738782658892,-158.84,9.889e-05,2]
[351772155,1738782658906,-500.0,9.889e-05,2]
[351772156,1738782658920,-631.13,9.89e-05,2]
[351772157,1738782658929,-441.362531,9.89e-05,2]
[351772158,1738782658942,-467.735656,9.89e-05,2]
[351772159,1738782658956,-500.0,9.89e-05,2]
[351772160,1738782658968,-760.49,9.89e-05,2]
[351772161,1738782658978,-500.0,9.89e-05,2]
[351772162,1738782658989,-500.0,9.89e-05,2]
[351772163,1738782658999,-500.0,9.89e-05,2]
[351772164,1738782659009,-500.0,9.89e-05,2]
[351772165,1738782659019,-500.0,9.89e-05,2]
[351772166,1738782659032,-500.0,9.89e-05,2]
[351772167,1738782659042,-1052.44,9.89e-05,2]
[351772168,1738782659052,-500.0,9.89e-05,2]
[351772169,1738782659063,-500.0,9.89e-05,2]
[351772170,1738782659073,-500.0,9.89e-05,2]
[351772171,1738782659084,-500.0,9.89e-05,2]
[351772172,1738782659094,-2095.38,9.89e-05,2]
[351772173,1738782659105,-734.22,9.89e-05,2]
[351772174,1738782659115,-500.0,9.89e-05,2]
[351772175,1738782659125,-500.0,9.89e-05,2]
[351772176,1738782659135,-500.0,9.89e-05,2]
[351772177,1738782659145,-535.04,9.89e-05,2]
[351772178,1738782659155,-500.0,9.89e-05,2]
[351772179,1738782659164,-500.0,9.89e-05,2]
[351772180,1738782659174,-1299.09,9.89e-05,2]
[351772181,1738782659184,-500.0,9.89e-05,2]
[351772182,1738782659194,-171.03,9.89e-05,2]
[351772183,1738782659203,-500.0,9.89e-05,2]
[351772184,1738782659214,-500.0,9.89e-05,2]
[351772185,1738782659224,-807.46,9.89e-05,2]
[351772186,1738782659234,-500.0,9.89e-05,2]
[351772187,1738782659243,-663.15,9.89e-05,2]
[351772188,1738782659253,-500.0,9.89e-05,2]
[351772189,1738782659262,-500.0,9.89e-05,2]
[351772190,1738782659272,-500.0,9.89e-05,2]
[351772191,1738782659284,-500.0,9.89e-05,2]
[351772192,1738782659294,-500.0,9.89e-05,2]
[351772193,1738782659303,-500.0,9.89e-05,2]
[351772194,1738782659313,-500.0,9.89e-05,2]
[351772195,1738782659324,-500.0,9.89e-05,2]
[351772196,1738782659334,-500.0,9.89e-05,2]
[351772197,1738782659344,-500.0,9.89e-05,2]
[351772198,1738782659354,-303.72,9.891e-05,2]
[351772199,1738782659363,-500.0,9.891e-05,2]
[351772200,1738782659372,-500.0,9.891e-05,2]
[351772201,1738782659382,-500.0,9.891e-05,2]
[351772202,1738782659393,-500.0,9.891e-05,2]
[351772203,1738782659402,-500.0,9.891e-05,2]
[351772204,1738782659412,-500.16,9.891e-05,2]
[351772205,1738782659422,-500.0,9.891e-05,2]
[351772206,1738782659432,-627.49399409,9.891e-05,2]
[351772207,1738782659442,-501.7,9.891e-05,2]
[351772208,1738782659452,-500.0,9.891e-05,2]
[351772209,1738782659462,-500.0,9.891e-05,2]
[351772210,1738782659472,-486.97,9.891e-05,2]
[351772211,1738782659482,-547.86,9.891e-05,2]
[351772212,1738782659492,-500.0,9.892e-05,2]
[351772213,1738782659501,-500.0,9.892e-05,2]
[351772214,1738782659511,-500.0,9.892e-05,2]
[351772215,1738782659522,-636.32,9.892e-05,2]
[351772216,1738782659537,-500.0,9.892e-05,2]
[351772217,1738782659547,-252.24,9.892e-05,2]
[351772218,1738782659557,-500.0,9.892e-05,2]
[351772219,1738782659567,-500.0,9.892e-05,2]
[351772220,1738782659577,-500.0,9.892e-05,2]
[351772221,1738782659588,-344.57,9.892e-05,2]
[351772222,1738782659598,-500.0,9.892e-05,2]
[351772223,1738782659608,-500.0,9.892e-05,2]
[351772224,1738782659617,-500.0,9.892e-05,2]
[351772225,1738782659628,-500.0,9.892e-05,2]
[351772226,1738782659637,-500.0,9.892e-05,2]
[351772227,1738782659647,-500.0,9.892e-05,2]
[351772228,1738782659657,-500.0,9.892e-05,2]
[351772229,1738782659667,-500.0,9.892e-05,2]
[351772230,1738782659678,-500.0,9.892e-05,2]
[351772231,1738782659688,-500.0,9.892e-05,2]
[351772232,1738782659698,-684.86,9.892e-05,2]
[351772233,1738782659708,-3813.27,9.892e-05,2]
[351772234,1738782659718,-500.0,9.892e-05,2]
[351772235,1738782659728,-396.30007467,9.892e-05,2]
[351772236,1738782659738,-500.0,9.892e-05,2]
[351772237,1738782659748,-500.0,9.892e-05,2]
[351772238,1738782659758,-500.0,9.892e-05,2]
[351772239,1738782659768,-500.0,9.892e-05,2]
[351772240,1738782659781,-562.72,9.892e-05,2]
[351772241,1738782659791,-500.0,9.892e-05,2]
[351772242,1738782659800,-500.0,9.892e-05,2]
[351772243,1738782659810,-1047.8,9.892e-05,2]
[351772244,1738782659821,-500.0,9.892e-05,2]
[351772245,1738782659835,-393.92,9.892e-05,2]
[351772246,1738782659846,-540.17,9.892e-05,2]
[351772247,1738782659856,-500.0,9.892e-05,2]
[351772248,1738782659866,-500.0,9.892e-05,2]
[351772249,1738782659876,-1000.0,9.892e-05,2]
[351772250,1738782659887,-500.0,9.892e-05,2]
[351772251,1738782659896,-311.41,9.892e-05,2]
[351772252,1738782659906,-577.68,9.892e-05,2]
[351772253,1738782659916,-500.0,9.892e-05,2]
[351772254,1738782659926,-500.0,9.892e-05,2]
[351772255,1738782659935,-500.0,9.892e-05,2]
[351772256,1738782659947,-730.5,9.892e-05,2]
[351772257,1738782659959,-500.0,9.892e-05,2]
[351772258,1738782659970,-500.0,9.892e-05,2]
[351772259,1738782659980,-500.0,9.892e-05,2]
[351772260,1738782659990,-500.0,9.892e-05,2]
[351772261,1738782660000,-500.0,9.893e-05,2]
[351772262,1738782660010,-500.0,9.893e-05,2]
[351772263,1738782660023,-500.0,9.893e-05,2]
[351772264,1738782660037,-500.0,9.893e-05,2]
[351772265,1738782660048,-500.0,9.894e-05,2]
[351772266,1738782660058,-150.0,9.912e-05,2]
[351772267,1738782660069,-17.84884044,9.941e-05,2]
[351772268,1738782660105,-182.15115956,9.941e-05,2]
[351772269,1738782660115,-101.88884104,9.957e-05,2]
[351772270,1738782660127,-98.11115896,9.957e-05,2]
[351772271,1738782660138,-159.57113707,0.0001,2]
[351772272,1738782660148,-600.0,0.0001,3]
[351772273,1738782660159,-4000.0,0.0001,2]
[351772274,1738782660171,-500.0,0.00010026,2]
[351772275,1738782660181,-500.0,0.00010026,2]
[351772276,1738782660191,-279.1,0.00010026,2]
[351772277,1738782660202,-500.0,0.00010026,2]
[351772278,1738782660212,-500.0,0.00010026,2]
[351772279,1738782660223,-500.0,0.00010026,2]
[351772280,1738782660233,-500.0,0.00010026,2]
[351772281,1738782660243,-500.0,0.00010026,2]
[351772282,1738782660254,-523.22,0.00010026,2]
[351772283,1738782660265,-555.31,0.00010026,2]
[351772284,1738782660275,-585.9,0.00010026,2]
[351772285,1738782660287,-572.64,0.00010026,2]
[351772286,1738782660297,-500.0,0.00010026,2]
[351772287,1738782660307,-507.01,0.00010026,2]
[351772288,1738782660318,-500.0,0.00010026,2]
[351772289,1738782660328,-500.0,0.00010026,2]
[351772290,1738782660338,-500.0,0.00010026,2]
[351772291,1738782660349,-500.0,0.00010026,2]
[351772292,1738782660360,-155.918622,0.00010026,2]
[351772293,1738782660370,-500.0,0.00010026,2]
[351772294,1738782660380,-441.362531,0.00010027,2]
[351772295,1738782660391,-467.735656,0.00010027,2]
[351772296,1738782660401,-157.048047,0.00010027,2]
[351772297,1738782660411,-500.0,0.00010027,2]
[351772298,1738782660606,-760.49,0.00010027,2]
[351772299,1738782660625,-500.0,0.00010027,2]
[351772300,1738782660635,-157.07,0.00010027,2]
[351772301,1738782660645,-500.0,0.00010027,2]
[351772302,1738782660655,-406.8,0.00010027,2]
[351772303,1738782660665,-500.0,0.00010027,2]
[351772304,1738782660675,-500.0,0.00010027,2]
[351772305,1738782660685,-1052.44,0.00010027,2]
[351772306,1738782660695,-500.0,0.00010027,2]
[351772307,1738782660705,-168.78,0.00010027,2]
[351772308,1738782660715,-500.0,0.00010027,2]
[351772309,1738782660725,-500.0,0.00010027,2]
[351772310,1738782660735,-2095.38,0.00010027,2]
[351772311,1738782660747,-734.22,0.00010027,2]
[351772312,1738782660757,-500.0,0.00010027,2]
[351772313,1738782660767,-500.0,0.00010027,2]
[351772314,1738782660778,-500.0,0.00010027,2]
[351772315,1738782660792,-535.04,0.00010027,2]
[351772316,1738782660802,-500.0,0.00010027,2]
[351772317,1738782660813,-500.0,0.00010027,2]
[351772318,1738782660824,-1299.09,0.00010027,2]
[351772319,1738782660835,-460.05,0.00010027,2]
[351772320,1738782660845,-500.0,0.00010027,2]
[351772321,1738782660857,-500.0,0.00010027,2]
[351772322,1738782660868,-807.46,0.00010027,2]
[351772323,1738782660878,-500.0,0.00010027,2]
[351772324,1738782660888,-663.15,0.00010027,2]
[351772325,1738782660899,-500.0,0.00010027,2]
[351772326,1738782660911,-500.0,0.00010027,2]
[351772327,1738782660922,-500.0,0.00010027,2]
[351772328,1738782660934,-500.0,0.00010027,2]
[351772329,1738782660945,-500.0,0.00010027,2]
[351772330,1738782660960,-500.0,0.00010027,2]
[351772331,1738782660971,-500.0,0.00010027,2]
[351772332,1738782660982,-500.0,0.00010027,2]
[351772333,1738782660992,-500.0,0.00010027,2]
[351772334,1738782661004,-500.0,0.00010027,2]
[351772335,1738782661015,-500.0,0.00010028,2]
[351772336,1738782661026,-161.44,0.00010028,2]
[351772337,1738782661047,-500.0,0.00010028,2]
[351772338,1738782661058,-500.0,0.00010028,2]
[351772339,1738782661070,-500.0,0.00010028,2]
[351772340,1738782661081,-500.0,0.00010028,2]
[351772341,1738782661092,-500.0,0.00010028,2]
[351772342,1738782661104,-419.82,0.00010029,2]
[351772343,1738782661115,-500.0,0.00010029,2]
[351772344,1738782661126,-500.0,0.00010029,2]
[351772345,1738782661137,-500.0,0.00010029,2]
[351772346,1738782661147,-371.15,0.00010029,2]
[351772347,1738782661158,-500.0,0.00010029,2]
[351772348,1738782661169,-500.0,0.00010029,2]
[351772349,1738782661179,-500.0,0.00010029,2]
[351772350,1738782661189,-500.0,0.00010029,2]
[351772351,1738782661199,-500.0,0.00010029,2]
[351772352,1738782661209,-500.0,0.00010029,2]
[351772353,1738782661219,-500.0,0.00010029,2]
[351772354,1738782661229,-500.0,0.00010029,2]
[351772355,1738782661239,-122.99284796,0.00010029,2]
[351772356,1738782661252,-502.42715204,0.00010029,2]
[351772357,1738782661262,-500.0,0.00010029,2]
[351772358,1738782661273,-500.0,0.00010029,2]
[351772359,1738782661290,-500.0,0.00010029,2]
[351772360,1738782661300,-684.86,0.00010029,2]
[351772361,1738782661310,-2392.34328794,0.00010029,2]
[351772362,1738782661578,-500.0,9.067e-05,2]
[351772363,1738782661588,-500.0,9.068e-05,2]
[351772364,1738782661598,-536.1,9.068e-05,2]
[351772365,1738782661608,-500.0,9.07e-05,2]
[351772366,1738782661618,-500.0,9.07e-05,2]
[351772367,1738782661629,-1420.92671206,0.00010029,2]
[351772368,1738782661638,-500.0,0.00010029,2]
[351772369,1738782661648,-500.0,0.00010029,2]
[351772370,1738782661658,-500.0,0.00010029,2]
[351772371,1738782661669,-500.0,0.00010029,2]
[351772372,1738782661678,-500.0,0.00010029,2]
[351772373,1738782661688,-562.72,0.00010029,2]
[351772374,1738782661698,-500.0,0.00010029,2]
[351772375,1738782661708,-170.52494379,0.00010029,2]
[351772376,1738782661721,-329.47505621,0.00010029,2]
[351772377,1738782661731,-1047.8,0.00010029,2]
[351772378,1738782661741,-500.0,0.00010029,2]
[351772379,1738782661751,-540.17,0.00010029,2]
[351772380,1738782661761,-500.0,0.00010029,2]
[351772381,1738782661771,-361.74,0.00010029,2]
[351772382,1738782661783,-1000.0,0.00010029,2]
[351772383,1738782661793,-500.0,0.00010029,2]
[351772384,1738782661803,-577.68,0.00010029,2]
[351772385,1738782661813,-500.0,0.00010029,2]
[351772386,1738782661823,-500.0,0.00010029,2]
[351772387,1738782661833,-500.0,0.00010029,2]
[351772388,1738782661843,-730.5,0.00010029,2]
[351772389,1738782661854,-274.36,0.00010029,2]
[351772390,1738782661864,-234.25,0.00010029,2]
[351772391,1738782661874,-588.9615211,0.00010029,2]
[351772392,1738782661884,-500.0,0.00010029,2]
[351772393,1738782661894,-500.0,0.0001003,2]
[351772394,1738782661904,-500.0,0.0001003,2]
[351772395,1738782661915,-500.0,0.00010031,2]
[351772396,1738782661925,-150.0,0.00010033,2]
[351772397,1738782661935,-150.0,0.00010051,2]
[351772398,1738782661946,-150.0,0.00010079,2]
[351772399,1738782661959,-878.52,0.00010082,2]
[351772400,1738782661970,-150.0,0.00010107,2]
[351772401,1738782661980,-150.0,0.00010116,2]
[351772402,1738782661991,-150.0,0.00010123,2]
[351772403,1738782662001,-150.0,0.00010136,2]
[351772404,1738782662011,-957.54,0.00010137,2]
[351772405,1738782662021,-325.8359887,0.00010141,2]
[351772406,1738782662035,-71.0540113,0.00010141,2]
[351772407,1738782662047,-500.0,0.00010163,2]
[351772408,1738782662057,-150.34,0.00010163,2]
[351772409,1738782662066,-500.0,0.00010163,2]
[351772410,1738782662077,-616.28,0.00010163,2]
[351772411,1738782662088,-500.0,0.00010163,2]
[351772412,1738782662098,-250.92788135,0.00010163,2]
[351772413,1738782662111,-249.07211865,0.00010163,2]
[351772414,1738782662120,-85.02517055,0.00010163,2]
[351772415,1738782662132,-414.97482945,0.00010163,2]
[351772416,1738782662142,-523.22,0.00010163,2]
[351772417,1738782662152,-97.05250729,0.00010163,2]
[351772418,1738782662164,-347.6720065,0.00010163,2]
[351772419,1738782662269,-110.58548621,0.00010163,2]
[351772420,1738782662279,-478.16451171,0.00010163,2]
[351772421,1738782662293,-94.47548829,0.00010163,2]
[351772422,1738782662303,-500.0,0.00010163,2]
[351772423,1738782662313,-507.01,0.00010163,2]
[351772424,1738782662325,-50.46526825,0.00010163,2]
[351772454,1738783832280,-273.52100681,8.07e-05,2]
[351772455,1738783832294,-5491.60000002,8.07e-05,2]
[351772456,1738783832458,-6100.2400172,8.07e-05,2]
[351772457,1738783832520,-900.5416412,8.07e-05,2]
[351772458,1738783832534,-522.3652808,8.07e-05,2]
[351772459,1738783832547,-1244.15535,8.07e-05,2]
[351772460,1738783832558,-1805.281405,8.07e-05,2]
[351772470,1738783838055,-1997.54,8.07e-05,2]
[351772471,1738783838117,-5564.75529897,8.07e-05,2]
[351772472,1738783838128,-200.0,8.151e-05,2]
[351772473,1738783838138,-1500.0,8.181e-05,2]
[351772474,1738783838148,-1011.21,8.209e-05,2]
[351772475,1738783838158,-1265.05,8.219e-05,2]
[351772476,1738783838169,-1000.0,8.219e-05,2]
[351772477,1738783838179,-5471.38,8.256e-05,2]
[351772478,1738783838189,-1340.34,8.265e-05,2]
[351772479,1738783838199,-173.44,8.265e-05,2]
[351772480,1738783838209,-306.58,8.274e-05,2]
[351772481,1738783838218,-165.23,8.534e-05,2]
[351772482,1738783838228,-165.23,8.541e-05,2]
[351772483,1738783838238,-165.23,8.548e-05,2]
[351772484,1738783838248,-2671.55470103,8.555e-05,2]
[351772485,1738783838261,-1908.67529897,8.555e-05,2]
[351772486,1738783838271,-165.23,8.555e-05,2]
[351772487,1738783838281,-165.23,8.563e-05,2]
[351772488,1738783838291,-165.23,8.57e-05,2]
[351772489,1738783838305,-165.23,8.577e-05,2]
[351772490,1738783838316,-150.0,8.622e-05,2]
[351772491,1738783838326,-150.0,8.777e-05,2]
[351772492,1738783838337,-150.0,8.963e-05,2]
[351772493,1738783838347,-150.0,8.973e-05,2]
[351772494,1738783838359,-150.0,8.988e-05,2]
[351772495,1738783838369,-150.0,9.014e-05,2]
[351772496,1738783838380,-150.0,9.033e-05,2]
[351772497,1738783838390,-150.0,9.066e-05,2]
[351772498,1738783838401,-220.68438946,9.067e-05,2]
[351772499,1738783838412,-500.0,9.067e-05,2]
[351772500,1738783838421,-500.0,9.067e-05,2]
[351772501,1738783838433,-500.0,9.067e-05,2]
[351772502,1738783838442,-362.19861618,9.067e-05,2]
[351772503,1738783838457,-137.80138382,9.067e-05,2]
[351772505,1738783838467,-500.0,9.067e-05,2]
[351772507,1738783838477,-500.0,9.067e-05,2]
[351772509,1738783838487,-500.0,9.067e-05,2]
[351772511,1738783838497,-500.0,9.067e-05,2]
[351772513,1738783838508,-500.0,9.067e-05,2]
[351772515,1738783838518,-500.0,9.067e-05,2]
[351772518,1738783838527,-500.0,9.067e-05,2]
[351772519,1738783838536,-535.2,9.067e-05,2]
[351772522,1738783838548,-500.0,9.067e-05,2]
[351772523,1738783838557,-500.0,9.067e-05,2]
[351772525,1738783838567,-385.99861618,9.067e-05,2]
[351772528,1738783838579,-114.00138382,9.067e-05,2]
[351772530,1738783838589,-500.0,9.067e-05,2]
[351772532,1738783838599,-500.0,9.067e-05,2]
[351772534,1738783838609,-500.0,9.067e-05,2]
[351772536,1738783838618,-500.0,9.067e-05,2]
[351772538,1738783838627,-500.0,9.067e-05,2]
[351772540,1738783838637,-123.11308579,9.067e-05,2]
[351772542,1738783838649,-318.20514,9.067e-05,2]
[351772545,1738783838667,-58.68177421,9.067e-05,2]
[351772547,1738783838676,-500.0,9.067e-05,2]
[351772549,1738783838686,-500.0,9.067e-05,2]
[351772551,1738783838696,-208.75735354,9.067e-05,2]
[351772553,1738783838708,-291.24264646,9.067e-05,2]
[351772555,1738783838718,-447.67,9.067e-05,2]
[351772558,1738783838727,-500.0,9.067e-05,2]
[351772560,1738783838737,-275.15227402,9.067e-05,2]
[351772561,1738783838747,-211.4,9.067e-05,2]
[351772564,1738783838756,-500.0,9.067e-05,2]
[351772566,1738783838765,-377.85,9.067e-05,2]
[351772567,1738783838775,-500.0,9.067e-05,2]
[351772569,1738783838784,-150.26297039,9.067e-05,2]
[351772575,1738783838825,-337.83702961,9.067e-05,2]
[351772577,1738783838834,-500.0,9.067e-05,2]
[351772579,1738783838843,-92.46926316,9.067e-05,2]
[351772720,1738783840176,-407.53073684,9.067e-05,2]
[351772722,1738783840186,-500.0,9.067e-05,2]
[351772725,1738783840197,-127.14806316,9.067e-05,2]
[351772743,1738783840372,-224.95193684,9.067e-05,2]
[351772745,1738783840382,-500.0,9.067e-05,2]
[351772747,1738783840393,-500.0,9.067e-05,2]
[351772749,1738783840404,-165.34865807,9.067e-05,2]
[351772751,1738783840416,-334.65134193,9.067e-05,2]
[351772753,1738783840426,-500.0,9.068e-05,2]
[351772755,1738783840437,-507.77600377,9.068e-05,2]
[351772757,1738783840448,-500.0,9.068e-05,2]
[351772759,1738783840457,-100.29524002,9.068e-05,2]
[351772762,1738783840479,-464.31475998,9.068e-05,2]
[351772764,1738783840488,-500.0,9.081e-05,2]
[351772765,1738783840498,-150.0,9.092e-05,2]
[351772766,1738783840508,-812.1325189,9.134e-05,2]
[351772767,1738783840517,-275.78380735,9.204e-05,2]
[351772768,1738783840529,-224.21619265,9.204e-05,2]
[351772769,1738783840539,-500.0,9.204e-05,2]
[351772770,1738783840554,-500.0,9.204e-05,2]
[351772771,1738783840565,-197.99917278,9.204e-05,2]
[351772772,1738783840576,-500.0,9.204e-05,2]
[351772773,1738783840586,-500.16,9.204e-05,2]
[351772774,1738783840597,-501.7,9.204e-05,2]
[351772775,1738783840607,-500.0,9.204e-05,2]
[351772776,1738783840618,-627.49399409,9.204e-05,2]
[351772777,1738783840629,-500.0,9.204e-05,2]
[351772778,1738783840640,-486.97,9.204e-05,2]
[351772780,1738783840650,-602.56,9.204e-05,2]
[351772782,1738783840660,-547.86,9.204e-05,2]
[351772784,1738783840670,-500.0,9.204e-05,2]
[351772786,1738783840679,-150.0,9.213e-05,2]
[351772788,1738783840689,-1000.0,9.247e-05,2]
[351772790,1738783840698,-306.58,9.309e-05,2]
[351772792,1738783840708,-500.0,9.34e-05,2]
[351772793,1738783840717,-500.0,9.34e-05,2]
[351772795,1738783840727,-500.0,9.34e-05,2]
[351772798,1738783840736,-567.32,9.34e-05,2]
[351772800,1738783840747,-500.0,9.34e-05,2]
[351772802,1738783840758,-299.67608034,9.34e-05,2]
[351772803,1738783840768,-500.0,9.34e-05,2]
[351772806,1738783840778,-500.0,9.34e-05,2]
[351772808,1738783840789,-604.01,9.34e-05,2]
[351772809,1738783840801,-340.43,9.34e-05,2]
[351772811,1738783840811,-300.28902167,9.34e-05,2]
[351772813,1738783840820,-500.0,9.34e-05,2]
[351772815,1738783840830,-500.0,9.34e-05,2]
[351772817,1738783840840,-500.0,9.34e-05,2]
[351772820,1738783840850,-500.0,9.34e-05,2]
[351772822,1738783840860,-547.38,9.34e-05,2]
[351772823,1738783840870,-500.0,9.34e-05,2]
[351772826,1738783840880,-500.0,9.34e-05,2]
[351772828,1738783840890,-155.57,9.34e-05,2]
[351772830,1738783840900,-500.0,9.34e-05,2]
[351772832,1738783840911,-500.0,9.34e-05,2]
[351772834,1738783840921,-500.0,9.34e-05,2]
[351772836,1738783840931,-500.0,9.34e-05,2]
[351772838,1738783840940,-500.0,9.34e-05,2]
[351772840,1738783840950,-500.0,9.34e-05,2]
[351772842,1738783840960,-500.0,9.34e-05,2]
[351772844,1738783840970,-500.0,9.34e-05,2]
[351772846,1738783840980,-156.76,9.34e-05,2]
[351772848,1738783840990,-500.0,9.34e-05,2]
[351772850,1738783840999,-500.0,9.34e-05,2]
[351772851,1738783841010,-500.0,9.34e-05,2]
[351772854,1738783841020,-500.0,9.34e-05,2]
[351772855,1738783841030,-500.0,9.34e-05,2]
[351772857,1738783841040,-500.0,9.34e-05,2]
[351772859,1738783841054,-500.0,9.34e-05,2]
[351772861,1738783841064,-500.0,9.34e-05,2]
[351772864,1738783841074,-500.0,9.34e-05,2]
[351772865,1738783841084,-500.0,9.34e-05,2]
[351772868,1738783841094,-500.0,9.34e-05,2]
[351772870,1738783841103,-500.0,9.34e-05,2]
[351772872,1738783841113,-500.0,9.34e-05,2]
[351772873,1738783841123,-518.94970713,9.34e-05,2]
[351772876,1738783841132,-500.0,9.34e-05,2]
[351772878,1738783841142,-500.0,9.34e-05,2]
[351772879,1738783841151,-500.0,9.34e-05,2]
[351772882,1738783841161,-306.17248031,9.34e-05,2]
[351772884,1738783841171,-500.0,9.34e-05,2]
[351772885,1738783841182,-500.0,9.34e-05,2]
[351772887,1738783841194,-500.0,9.34e-05,2]
[351772890,1738783841206,-500.0,9.34e-05,2]
[351772892,1738783841216,-500.0,9.34e-05,2]
[351772894,1738783841226,-500.0,9.34e-05,2]
[351772896,1738783841235,-500.0,9.34e-05,2]
[351772898,1738783841246,-500.0,9.34e-05,2]
[351772900,1738783841256,-821.9,9.34e-05,2]
[351772902,1738783841266,-500.0,9.34e-05,2]
[351772904,1738783841277,-500.0,9.34e-05,2]
[351772906,1738783841287,-500.0,9.34e-05,2]
[351772908,1738783841296,-500.0,9.34e-05,2]
[351772910,1738783841312,-203.32,9.34e-05,2]
[351772911,1738783841321,-500.0,9.34e-05,2]
[351772913,1738783841331,-369.47,9.34e-05,2]
[351772915,1738783841341,-500.0,9.34e-05,2]
[351772918,1738783841351,-500.0,9.34e-05,2]
[351772920,1738783841362,-298.16,9.34e-05,2]
[351772921,1738783841376,-500.0,9.34e-05,2]
[351772923,1738783841385,-547.88,9.34e-05,2]
[351772925,1738783841395,-617.62,9.34e-05,2]
[351772927,1738783841406,-500.0,9.34e-05,2]
[351772929,1738783841415,-500.0,9.34e-05,2]
[351772932,1738783841425,-500.0,9.34e-05,2]
[351772934,1738783841435,-557.83,9.34e-05,2]
[351772936,1738783841446,-150.0,9.34e-05,2]
[351772938,1738783841456,-230.38,9.34e-05,2]
[351772940,1738783841466,-500.0,9.34e-05,2]
[351772942,1738783841475,-500.0,9.34e-05,2]
[351772944,1738783841485,-500.0,9.34e-05,2]
[351772946,1738783841495,-500.0,9.34e-05,2]
[351772948,1738783841504,-500.0,9.34e-05,2]
[351772950,1738783841514,-500.0,9.34e-05,2]
[351772952,1738783841524,-500.0,9.34e-05,2]
[351772954,1738783841533,-500.0,9.34e-05,2]
[351772956,1738783841543,-500.0,9.34e-05,2]
[351772958,1738783841558,-500.0,9.34e-05,2]
[351772960,1738783841568,-500.0,9.34e-05,2]
[351772962,1738783841578,-500.0,9.34e-05,2]
[351772964,1738783841587,-500.0,9.34e-05,2]
[351772966,1738783841597,-500.0,9.34e-05,2]
[351772968,1738783841607,-191.18,9.341e-05,2]
[351772970,1738783841617,-500.0,9.341e-05,2]
[351772972,1738783841626,-414.24,9.341e-05,2]